fUSD/lending_fUSD_20240523
["ID","MTS","AMOUNT","RATE_DAILY","PERIOD"]
[327783877,1716477032983,-478.16811619,0.00023714,2]
[327783878,1716477032992,-660.56590097,0.00023714,2]
[327783879,1716477033002,-155.340699,0.00023714,2]
[327783880,1716477033012,-806.32648172,0.00023714,2]
[327783881,1716477033021,-2507.04734299,0.00023714,2]
[327783882,1716477033031,-1122.56488824,0.00023714,2]
[327783883,1716477033040,-317.16643686,0.00023715,2]
[327783884,1716477033050,-1925.04,0.00023715,2]
[327783885,1716477033059,-500.0,0.00023715,2]
[327783886,1716477033069,-500.0,0.00023715,2]
[327783887,1716477033079,-500.0,0.00023715,2]
[327783888,1716477033088,-500.0,0.00023715,2]
[327783889,1716477033098,-500.0,0.00023715,2]
[327783890,1716477033108,-583.66,0.00023715,2]
[327783891,1716477033118,-547.79,0.00023715,2]
[327783892,1716477033127,-500.0,0.00023715,2]
[327783893,1716477033137,-500.0,0.00023715,2]
[327783894,1716477033148,-500.0,0.00023715,2]
[327783895,1716477033158,-500.0,0.00023715,2]
[327783896,1716477033168,-500.0,0.00023715,2]
[327783897,1716477033177,-500.0,0.00023715,2]
[327783898,1716477033187,-500.0,0.00023715,2]
[327783899,1716477033196,-795.75,0.00023715,2]
[327783900,1716477033206,-500.0,0.00023715,2]
[327783901,1716477033215,-500.0,0.00023715,2]
[327783902,1716477033225,-500.0,0.00023716,2]
[327783903,1716477033235,-500.0,0.00023716,2]
[327783904,1716477033245,-500.0,0.00023716,2]
[327783905,1716477033254,-500.0,0.00023716,2]
[327783906,1716477033264,-500.0,0.00023716,2]
[327783907,1716477033273,-500.0,0.00023716,2]
[327783908,1716477033283,-582.95,0.00023716,2]
[327783909,1716477033292,-500.0,0.00023716,2]
[327783910,1716477033302,-500.0,0.00023716,2]
[327783911,1716477033312,-500.0,0.00023716,2]
[327783912,1716477033322,-500.0,0.00023716,2]
[327783913,1716477033331,-500.0,0.00023716,2]
[327783914,1716477033341,-500.0,0.00023716,2]
[327783915,1716477033351,-500.0,0.00023716,2]
[327783916,1716477033360,-500.0,0.00023716,2]
[327783917,1716477033371,-500.0,0.00023716,2]
[327783918,1716477033381,-510.35812756,0.00023716,2]
[327783919,1716477033390,-503.65384327,0.00023716,2]
[327783920,1716477033402,-973.9,0.00023716,2]
[327783921,1716477033412,-500.0,0.00023716,2]
[327783922,1716477033422,-500.0,0.00023716,2]
[327783923,1716477033431,-500.0,0.00023716,2]
[327783924,1716477033440,-500.0,0.00023716,2]
[327783925,1716477033449,-500.0,0.00023716,2]
[327783926,1716477033458,-500.0,0.00023716,2]
[327783927,1716477033468,-500.0,0.00023716,2]
[327783928,1716477033477,-193.46526567,0.00023716,2]
[327783929,1716477033486,-500.0,0.00023716,2]
[327783930,1716477033496,-500.0,0.00023716,2]
[327783931,1716477033506,-500.0,0.00023716,2]
[327783932,1716477033515,-500.0,0.00023716,2]
[327783933,1716477033525,-500.0,0.00023716,2]
[327783934,1716477033534,-500.0,0.00023716,2]
[327783935,1716477033550,-500.0,0.00023716,2]
[327783936,1716477033559,-500.0,0.00023716,2]
[327783937,1716477033568,-500.0,0.00023716,2]
[327783938,1716477033578,-519.48,0.00023716,2]
[327783939,1716477033588,-406.3643563,0.00023716,2]
[327783940,1716477033597,-500.0,0.00023716,2]
[327783941,1716477033607,-500.0,0.00023716,2]
[327783942,1716477033616,-500.0,0.00023716,2]
[327783943,1716477033626,-500.0,0.00023716,2]
[327783944,1716477033636,-500.0,0.00023716,2]
[327783945,1716477033647,-500.0,0.00023716,2]
[327783946,1716477033657,-500.0,0.00023716,2]
[327783947,1716477033666,-500.0,0.00023716,2]
[327783948,1716477033675,-202.14030187,0.00023716,2]
[327783949,1716477033684,-500.0,0.00023716,2]
[327783950,1716477033694,-500.0,0.00023716,2]
[327783951,1716477033704,-500.0,0.00023716,2]
[327783952,1716477033713,-500.0,0.00023716,2]
[327783953,1716477033723,-500.0,0.00023716,2]
[327783954,1716477033732,-1027.23,0.00023716,2]
[327783955,1716477033741,-500.0,0.00023716,2]
[327783956,1716477033751,-500.0,0.00023716,2]
[327783957,1716477033760,-500.0,0.00023716,2]
[327783958,1716477033770,-500.0,0.00023716,2]
[327783959,1716477033779,-500.0,0.00023716,2]
[327783960,1716477033790,-390.60553129,0.00023716,2]
[327783961,1716477033800,-508.29234993,0.00023716,2]
[327783962,1716477033809,-500.0,0.00023716,2]
[327783963,1716477033819,-500.0,0.00023716,2]
[327783964,1716477033828,-500.0,0.00023716,2]
[327783965,1716477033838,-519.3018921,0.00023716,2]
[327783966,1716477033847,-500.0,0.00023716,2]
[327783967,1716477033857,-500.0,0.00023716,2]
[327783968,1716477033867,-500.0,0.00023716,2]
[327783969,1716477033876,-1049.26,0.00023716,2]
[327783970,1716477033886,-500.0,0.00023716,2]
[327783971,1716477033898,-500.0,0.00023716,2]
[327783972,1716477033907,-500.0,0.00023716,2]
[327783973,1716477033917,-500.0,0.00023716,2]
[327783974,1716477033926,-500.0,0.00023716,2]
[327783975,1716477033936,-500.0,0.00023716,2]
[327783976,1716477033946,-500.0,0.00023716,2]
[327783977,1716477033955,-500.0,0.00023716,2]
[327783978,1716477033965,-500.0,0.00023716,2]
[327783979,1716477033975,-500.0,0.00023716,2]
[327783980,1716477033985,-558.58537089,0.00023716,2]
[327783981,1716477033994,-500.0,0.00023716,2]
[327783982,1716477034004,-500.0,0.00023716,2]
[327783983,1716477034013,-500.0,0.00023716,2]
[327783984,1716477034022,-500.0,0.00023716,2]
[327783985,1716477034032,-500.0,0.00023716,2]
[327783986,1716477034041,-500.0,0.00023716,2]
[327783987,1716477034051,-500.0,0.00023716,2]
[327783988,1716477034060,-206.87152292,0.00023716,2]
[327783989,1716477034069,-543.55439383,0.00023716,2]
[327783990,1716477034079,-500.0,0.00023718,2]
[327783991,1716477034088,-500.0,0.00023718,2]
[327783992,1716477034098,-150.0,0.00023721,2]
[327783993,1716477034108,-150.0,0.00023722,2]
[327783994,1716477034117,-150.0,0.00023723,2]
[327783995,1716477034126,-150.0,0.00023724,2]
[327783996,1716477034136,-150.0,0.00023724,2]
[327783997,1716477034146,-150.0,0.00023726,2]
[327783998,1716477034156,-150.0,0.00023727,2]
[327783999,1716477034166,-505.78324393,0.00023728,2]
[327784000,1716477034176,-241.72210903,0.00023728,2]
[327784001,1716477034186,-505.40562606,0.00023728,2]
[327784002,1716477034196,-455.66132131,0.00023728,2]
[327784003,1716477034205,-150.0,0.00023731,2]
[327784004,1716477034215,-150.0,0.00023733,2]
[327784005,1716477034224,-150.0,0.00023734,2]
[327784006,1716477034234,-150.0,0.00023734,2]
[327784007,1716477034243,-2000.0,0.00023735,2]
[327784008,1716477034252,-200.0,0.00023735,2]
[327784009,1716477034262,-2000.0,0.00023735,2]
[327784010,1716477034271,-200.0,0.00023735,2]
[327784011,1716477034281,-2000.0,0.00023735,2]
[327784012,1716477034290,-200.0,0.00023735,2]
[327784013,1716477034299,-150.0,0.0002374,2]
[327784014,1716477034310,-150.0,0.00023741,2]
[327784015,1716477034319,-150.0,0.00023742,2]
[327784016,1716477034329,-150.0,0.00023742,2]
[327784017,1716477034338,-150.0,0.00023749,2]
[327784018,1716477034348,-150.0,0.00023751,2]
[327784019,1716477034358,-150.0,0.00023753,2]
[327784020,1716477034368,-150.0,0.00023753,2]
[327784021,1716477034377,-150.0,0.00023754,2]
[327784022,1716477034387,-150.0,0.00023757,2]
[327784023,1716477034398,-11622.54345875,0.0002376,2]
[327784024,1716477034408,-401.90122,0.0002376,2]
[327784025,1716477034417,-150.0,0.00023761,2]
[327784026,1716477034426,-150.0,0.00023762,2]
[327784027,1716477034437,-150.0,0.00023764,2]
[327784028,1716477034446,-150.0,0.00023766,2]
[327784029,1716477034456,-4077.95920496,0.00023768,2]
[327784030,1716477034466,-150.0,0.00023774,2]
[327784031,1716477034475,-151.25,0.00023774,2]
[327784032,1716477034485,-150.0,0.00023775,2]
[327784033,1716477034494,-150.0,0.00023776,2]
[327784034,1716477034504,-150.0,0.00023778,2]
[327784035,1716477034513,-150.0,0.00023782,2]
[327784036,1716477034522,-150.0,0.00023784,2]
[327784037,1716477034531,-34531.76855142,0.00023785,2]
[327784038,1716477034541,-150.0,0.00023792,2]
[327784039,1716477034553,-150.0,0.00023794,2]
[327784040,1716477034562,-150.0,0.00023796,2]
[327784041,1716477034571,-150.0,0.00023798,2]
[327784042,1716477034581,-150.0,0.00023798,2]
[327784043,1716477034591,-150.0,0.00023809,2]
[327784044,1716477034600,-150.0,0.00023811,2]
[327784045,1716477034609,-150.0,0.00023812,2]
[327784046,1716477034619,-150.0,0.00023817,2]
[327784047,1716477034629,-150.0,0.00023821,2]
[327784048,1716477034639,-150.0,0.00023823,2]
[327784049,1716477034650,-150.0,0.00023823,2]
[327784050,1716477034660,-150.0,0.00023825,2]
[327784051,1716477034671,-150.0,0.00023835,2]
[327784052,1716477034680,-150.0,0.00023837,2]
[327784053,1716477034690,-150.0,0.00023837,2]
[327784054,1716477034699,-155.78238236,0.00023837,2]
[327784055,1716477034709,-150.0,0.00023838,2]
[327784056,1716477034719,-150.0,0.00023838,2]
[327784057,1716477034728,-600.0,0.00023842,2]
[327784058,1716477034738,-500.0,0.00023842,2]
[327784059,1716477034747,-500.0,0.00023843,2]
[327784060,1716477034757,-521.07,0.00023843,2]
[327784061,1716477034766,-500.0,0.00023843,2]
[327784062,1716477034775,-7299.14,0.00023843,2]
[327784063,1716477034785,-500.0,0.00023843,2]
[327784064,1716477034794,-500.0,0.00023843,2]
[327784065,1716477034803,-500.0,0.00023843,2]
[327784066,1716477034812,-500.0,0.00023843,2]
[327784067,1716477034822,-500.0,0.00023843,2]
[327784068,1716477034831,-500.0,0.00023843,2]
[327784069,1716477034840,-500.0,0.00023843,2]
[327784070,1716477034850,-500.0,0.00023843,2]
[327784071,1716477034860,-500.0,0.00023843,2]
[327784072,1716477034870,-500.0,0.00023843,2]
[327784073,1716477034881,-1436.82,0.00023843,2]
[327784074,1716477034892,-768.27,0.00023843,2]
[327784075,1716477034902,-500.0,0.00023843,2]
[327784076,1716477034912,-500.0,0.00023843,2]
[327784077,1716477034922,-500.0,0.00023843,2]
[327784078,1716477034931,-566.82,0.00023843,2]
[327784079,1716477034941,-500.0,0.00023843,2]
[327784080,1716477034951,-593.25338978,0.00023843,2]
[327784081,1716477034961,-500.0,0.00023843,2]
[327784082,1716477034971,-500.0,0.00023843,2]
[327784083,1716477034981,-500.0,0.00023843,2]
[327784084,1716477034990,-500.0,0.00023843,2]
[327784085,1716477035000,-500.0,0.00023843,2]
[327784086,1716477035010,-500.0,0.00023843,2]
[327784087,1716477035020,-500.0,0.00023843,2]
[327784088,1716477035029,-619.88,0.00023843,2]
[327784089,1716477035039,-500.0,0.00023843,2]
[327784090,1716477035048,-595.68567061,0.00023843,2]
[327784091,1716477035058,-985.13,0.00023843,2]
[327784092,1716477035068,-842.76,0.00023843,2]
[327784093,1716477035078,-1740.4,0.00023844,2]
[327784094,1716477035087,-150.0,0.00023846,2]
[327784095,1716477035098,-150.0,0.00023852,2]
[327784096,1716477035108,-150.0,0.00023853,2]
[327784097,1716477035117,-154.6636407,0.00023855,2]
[327784098,1716477035127,-150.0,0.00023857,2]
[327784099,1716477035137,-150.0,0.00023858,2]
[327784100,1716477035148,-150.0,0.00023859,2]
[327784101,1716477035158,-150.0,0.00023864,2]
[327784102,1716477035168,-150.0,0.00023866,2]
[327784103,1716477035178,-150.0,0.00023868,2]
[327784104,1716477035188,-150.0,0.00023869,2]
[327784105,1716477035197,-150.0,0.00023869,2]
[327784106,1716477035207,-150.0,0.00023871,2]
[327784107,1716477035217,-150.0,0.00023873,2]
[327784108,1716477035227,-150.0,0.00023874,2]
[327784109,1716477035236,-150.0,0.00023875,2]
[327784110,1716477035246,-150.0,0.00023877,2]
[327784111,1716477035256,-150.0,0.0002388,2]
[327784112,1716477035266,-150.0,0.00023882,2]
[327784113,1716477035276,-150.0,0.00023882,2]
[327784114,1716477035286,-661.48,0.00023889,2]
[327784115,1716477035296,-500.0,0.00023889,2]
[327784116,1716477035305,-7450.2,0.0002389,2]
[327784117,1716477035315,-150.0,0.00023891,2]
[327784118,1716477035326,-150.0,0.00023892,2]
[327784119,1716477035336,-2289.10051379,0.00023895,2]
[327784120,1716477035346,-500.0,0.00023895,2]
[327784121,1716477035355,-500.0,0.00023895,2]
[327784122,1716477035365,-500.0,0.00023895,2]
[327784123,1716477035374,-500.0,0.00023895,2]
[327784124,1716477035384,-500.0,0.00023895,2]
[327784125,1716477035397,-500.0,0.00023895,2]
[327784126,1716477035407,-500.0,0.00023895,2]
[327784127,1716477035416,-500.0,0.00023895,2]
[327784128,1716477035427,-1166.25,0.00023895,2]
[327784129,1716477035436,-1057.86,0.00023895,2]
[327784130,1716477035445,-572.84,0.00023895,2]
[327784131,1716477035455,-757.07,0.00023895,2]
[327784132,1716477035464,-1437.16,0.00023895,2]
[327784133,1716477035474,-500.0,0.00023895,2]
[327784134,1716477035484,-645.81,0.00023895,2]
[327784135,1716477035493,-500.0,0.00023895,2]
[327784136,1716477035504,-500.0,0.00023895,2]
[327784137,1716477035514,-500.0,0.00023895,2]
[327784138,1716477035523,-802.9,0.00023895,2]
[327784139,1716477035534,-500.0,0.00023895,2]
[327784140,1716477035549,-758.83,0.00023895,2]
[327784141,1716477035559,-1218.7,0.00023895,2]
[327784142,1716477035568,-645.31,0.00023895,2]
[327784143,1716477035578,-500.0,0.00023896,2]
[327784144,1716477035589,-500.0,0.00023896,2]
[327784145,1716477035599,-500.0,0.00023896,2]
[327784146,1716477035608,-466.43592988,0.00023896,2]
[327784147,1716477035620,-513.5179226,0.00023896,2]
[327784148,1716477035630,-500.0,0.00023896,2]
[327784149,1716477035640,-500.0,0.00023896,2]
[327784150,1716477035652,-500.0,0.00023896,2]
[327784151,1716477035660,-500.0,0.00023896,2]
[327784152,1716477035669,-500.0,0.00023896,2]
[327784153,1716477035678,-500.0,0.00023896,2]
[327784154,1716477035688,-505.7,0.00023896,2]
[327784155,1716477035698,-500.0,0.00023896,2]
[327784156,1716477035708,-876.4,0.00023896,2]
[327784157,1716477035718,-500.0,0.00023896,2]
[327784158,1716477035727,-500.0,0.00023896,2]
[327784159,1716477035738,-500.0,0.00023896,2]
[327784160,1716477035747,-500.0,0.00023896,2]
[327784161,1716477035757,-500.0,0.00023896,2]
[327784162,1716477035766,-500.0,0.00023896,2]
[327784163,1716477035775,-709.11,0.00023896,2]
[327784164,1716477035785,-639.94,0.00023896,2]
[327784165,1716477035795,-594.41,0.00023896,2]
[327784166,1716477035805,-500.0,0.00023896,2]
[327784167,1716477035814,-500.0,0.00023896,2]
[327784168,1716477035823,-500.0,0.00023896,2]
[327784169,1716477035833,-500.0,0.00023896,2]
[327784170,1716477035843,-500.0,0.00023896,2]
[327784171,1716477035852,-500.0,0.00023896,2]
[327784172,1716477035862,-500.0,0.00023896,2]
[327784173,1716477035872,-500.0,0.00023896,2]
[327784174,1716477035881,-500.0,0.00023896,2]
[327784175,1716477035891,-500.0,0.00023896,2]
[327784176,1716477035904,-500.0,0.00023896,2]
[327784177,1716477035913,-671.27,0.00023896,2]
[327784178,1716477035922,-672.43,0.00023896,2]
[327784179,1716477035932,-500.0,0.00023896,2]
[327784180,1716477035941,-500.0,0.00023896,2]
[327784181,1716477035951,-500.0,0.00023896,2]
[327784182,1716477035960,-500.0,0.00023896,2]
[327784183,1716477035970,-500.0,0.00023896,2]
[327784184,1716477035980,-500.0,0.00023896,2]
[327784185,1716477035990,-1022.63,0.00023896,2]
[327784186,1716477035999,-500.0,0.00023896,2]
[327784187,1716477036008,-500.0,0.00023896,2]
[327784188,1716477036018,-500.0,0.00023896,2]
[327784189,1716477036028,-500.0,0.00023896,2]
[327784190,1716477036037,-536.68,0.00023896,2]
[327784191,1716477036047,-500.0,0.00023896,2]
[327784192,1716477036057,-500.0,0.00023896,2]
[327784193,1716477036066,-500.0,0.00023896,2]
[327784194,1716477036076,-500.0,0.00023896,2]
[327784195,1716477036085,-359.12,0.00023896,2]
[327784196,1716477036095,-500.0,0.00023896,2]
[327784197,1716477036104,-500.0,0.00023896,2]
[327784198,1716477036114,-500.0,0.00023896,2]
[327784199,1716477036123,-500.0,0.00023896,2]
[327784200,1716477036133,-500.0,0.00023896,2]
[327784201,1716477036142,-500.0,0.00023896,2]
[327784202,1716477036153,-500.0,0.00023896,2]
[327784203,1716477036162,-500.0,0.00023896,2]
[327784204,1716477036172,-500.0,0.00023896,2]
[327784205,1716477036182,-500.0,0.00023896,2]
[327784206,1716477036191,-500.0,0.00023896,2]
[327784207,1716477036201,-500.0,0.00023896,2]
[327784208,1716477036210,-500.0,0.00023896,2]
[327784209,1716477036220,-500.0,0.00023896,2]
[327784210,1716477036230,-500.0,0.00023896,2]
[327784211,1716477036240,-169.54,0.00023896,2]
[327784212,1716477036249,-500.0,0.00023896,2]
[327784213,1716477036259,-500.0,0.00023896,2]
[327784214,1716477036268,-500.0,0.00023896,2]
[327784215,1716477036278,-500.0,0.00023896,2]
[327784216,1716477036287,-514.18412695,0.00023896,2]
[327784217,1716477036297,-522.72716983,0.00023896,2]
[327784218,1716477036307,-500.0,0.00023896,2]
[327784219,1716477036318,-500.0,0.00023896,2]
[327784220,1716477036327,-500.0,0.00023896,2]
[327784221,1716477036337,-500.0,0.00023896,2]
[327784222,1716477036347,-513.3926728,0.00023896,2]
[327784223,1716477036357,-500.0,0.00023896,2]
[327784224,1716477036367,-516.15596979,0.00023896,2]
[327784225,1716477036376,-500.0,0.00023896,2]
[327784226,1716477036386,-500.0,0.00023896,2]
[327784227,1716477036397,-500.0,0.00023896,2]
[327784228,1716477036407,-500.0,0.00023896,2]
[327784229,1716477036416,-500.0,0.00023896,2]
[327784230,1716477036426,-500.0,0.00023896,2]
[327784231,1716477036435,-500.0,0.00023896,2]
[327784232,1716477036444,-500.0,0.00023896,2]
[327784233,1716477036453,-500.0,0.00023896,2]
[327784234,1716477036465,-514.99324732,0.00023896,2]
[327784235,1716477036479,-500.0,0.00023896,2]
[327784236,1716477036489,-555.92725353,0.00023896,2]
[327784237,1716477036499,-537.93713439,0.00023896,2]
[327784238,1716477036515,-500.0,0.00023896,2]
[327784239,1716477036524,-621.3,0.00023896,2]
[327784240,1716477036534,-500.0,0.00023896,2]
[327784241,1716477036543,-507.41890714,0.00023896,2]
[327784242,1716477036556,-1554.88,0.00023896,2]
[327784243,1716477036567,-500.0,0.00023896,2]
[327784244,1716477036576,-500.0,0.00023896,2]
[327784245,1716477036586,-500.0,0.00023896,2]
[327784246,1716477036596,-500.0,0.00023896,2]
[327784247,1716477036605,-1403.62,0.00023896,2]
[327784248,1716477036615,-961.59,0.00023896,2]
[327784249,1716477036626,-1198.74,0.00023896,2]
[327784250,1716477036637,-500.0,0.00023896,2]
[327784251,1716477036649,-538.90950169,0.00023896,2]
[327784252,1716477036658,-500.0,0.00023896,2]
[327784253,1716477036667,-503.72,0.00023896,2]
[327784254,1716477036677,-2792.88,0.00023896,2]
[327784255,1716477036686,-500.0,0.00023896,2]
[327784256,1716477036696,-500.0,0.00023896,2]
[327784257,1716477036705,-500.0,0.00023896,2]
[327784258,1716477036715,-500.0,0.00023896,2]
[327784259,1716477036724,-1179.77,0.00023896,2]
[327784260,1716477036734,-2842.32,0.00023896,2]
[327784261,1716477036745,-500.0,0.00023896,2]
[327784262,1716477036755,-500.0,0.00023896,2]
[327784263,1716477036764,-500.0,0.00023896,2]
[327784264,1716477036774,-500.0,0.00023896,2]
[327784265,1716477036784,-500.0,0.00023896,2]
[327784266,1716477036970,-595.82,0.00023896,2]
[327784267,1716477036981,-500.0,0.00023896,2]
[327784268,1716477036991,-512.29847798,0.00023896,2]
[327784269,1716477037001,-500.0,0.00023896,2]
[327784270,1716477037012,-1236.18,0.00023896,2]
[327784271,1716477037022,-500.0,0.00023896,2]
[327784272,1716477037032,-500.0,0.00023896,2]
[327784273,1716477037041,-500.0,0.00023896,2]
[327784274,1716477037051,-500.0,0.00023896,2]
[327784275,1716477037061,-500.0,0.00023896,2]
[327784276,1716477037071,-500.0,0.00023896,2]
[327784277,1716477037080,-500.0,0.00023896,2]
[327784278,1716477037090,-502.56,0.00023896,2]
[327784279,1716477037100,-512.56738136,0.00023896,2]
[327784280,1716477037110,-517.50675781,0.00023896,2]
[327784281,1716477037120,-500.0,0.00023896,2]
[327784282,1716477037130,-506.39223663,0.00023896,2]
[327784283,1716477037139,-500.0,0.00023896,2]
[327784284,1716477037152,-586.67,0.00023896,2]
[327784285,1716477037161,-512.22226546,0.00023896,2]
[327784286,1716477037170,-500.0,0.00023896,2]
[327784287,1716477037180,-1041.2,0.00023896,2]
[327784288,1716477037190,-500.0,0.00023896,2]
[327784289,1716477037200,-500.0,0.00023896,2]
[327784290,1716477037209,-500.0,0.00023896,2]
[327784291,1716477037219,-650.58,0.00023896,2]
[327784292,1716477037229,-500.0,0.00023896,2]
[327784293,1716477037239,-500.0,0.00023896,2]
[327784294,1716477037249,-500.0,0.00023896,2]
[327784295,1716477037259,-500.0,0.00023896,2]
[327784296,1716477037269,-500.0,0.00023896,2]
[327784297,1716477037279,-500.0,0.00023896,2]
[327784298,1716477037289,-500.0,0.00023896,2]
[327784299,1716477037298,-500.0,0.00023896,2]
[327784300,1716477037308,-500.0,0.00023896,2]
[327784301,1716477037318,-500.0,0.00023896,2]
[327784302,1716477037328,-1427.46,0.00023896,2]
[327784303,1716477037338,-500.0,0.00023896,2]
[327784304,1716477037348,-500.0,0.00023896,2]
[327784305,1716477037358,-810.01,0.00023896,2]
[327784306,1716477037368,-37405.4441,0.00023897,2]
[327784307,1716477037378,-8875.3876,0.00023897,2]
[327784308,1716477037388,-209.98784317,0.00023898,2]
[327784309,1716477037401,-3234.68480005,0.00023899,2]
[327784310,1716477037410,-202.02406752,0.000239,2]
[327784311,1716477037420,-150.0,0.000239,2]
[327784312,1716477037430,-156.48510114,0.000239,2]
[327784313,1716477037445,-1197.2233356,0.000239,2]
[327784314,1716477037455,-7762.63272855,0.000239,2]
[327784336,1716477039312,-388.91509575,0.000239,2]
[327784338,1716477039322,-150.0,0.00023901,2]
[327784340,1716477039333,-150.0,0.00023901,2]
[327784342,1716477039343,-500.0,0.00023903,3]
[327784344,1716477039353,-150.0,0.00023904,2]
[327784346,1716477039363,-151.25,0.00023906,2]
[327784348,1716477039374,-150.0,0.00023911,2]
[327784350,1716477039385,-150.0,0.00023912,2]
[327784352,1716477039398,-2000.0,0.00023914,2]
[327784354,1716477039408,-200.0,0.00023914,2]
[327784356,1716477039420,-150.0,0.00023919,2]
[327784358,1716477039430,-2189.16779108,0.0002392,2]
[327784360,1716477039442,-1527.20049393,0.0002392,2]
[327784362,1716477039454,-361.59091995,0.0002392,2]
[327784364,1716477039464,-150.0,0.00023921,2]
[327784366,1716477039474,-150.0,0.00023921,2]
[327784369,1716477039485,-150.0,0.00023925,2]
[327784371,1716477039496,-150.0,0.00023925,2]
[327784372,1716477039505,-150.0,0.00023928,2]
[327784374,1716477039515,-150.0,0.0002393,2]
[327784376,1716477039526,-6651.12360005,0.00023935,2]
[327784401,1716477041815,-252.61867495,0.00023728,2]
[327784402,1716477041826,-500.0,0.00023889,2]
[327784403,1716477041836,-27880.64495137,0.00023935,2]
[327784404,1716477041847,-150.0,0.00023935,2]
[327784405,1716477041857,-150.0,0.00023937,2]
[327784406,1716477041970,-150.0,0.0002394,2]
[327784407,1716477041980,-150.0,0.00023943,2]
[327784408,1716477041990,-349.71956886,0.00023947,2]
[327784409,1716477042000,-150.0,0.0002396,2]
[327784410,1716477042010,-349.71956886,0.00023961,2]
[327784411,1716477042020,-150.0,0.00023964,2]
[327784412,1716477042030,-150.0,0.00023965,2]
[327784413,1716477042038,-349.71956886,0.00023965,2]
[327784414,1716477042048,-150.0,0.00023968,2]
[327784415,1716477042057,-150.0,0.00023969,2]
[327784416,1716477042067,-150.5,0.0002397,15]
[327784417,1716477042076,-2000.0,0.00023972,2]
[327784418,1716477042086,-200.0,0.00023972,2]
[327784419,1716477042095,-2000.0,0.00023972,2]
[327784420,1716477042104,-200.0,0.00023972,2]
[327784421,1716477042115,-2000.0,0.00023972,2]
[327784422,1716477042124,-200.0,0.00023972,2]
[327784423,1716477042134,-150.0,0.00023975,2]
[327784424,1716477042144,-150.0,0.00023976,2]
[327784425,1716477042154,-150.0,0.00023979,2]
[327784426,1716477042164,-150.0,0.00023979,2]
[327784427,1716477042174,-150.5,0.0002398,15]
[327784428,1716477042184,-150.0,0.0002398,2]
[327784429,1716477042193,-150.0,0.00023984,2]
[327784430,1716477042203,-198.88015173,0.00023987,2]
[327784431,1716477042212,-150.0,0.00023987,2]
[327784432,1716477042222,-500.0,0.00023988,2]
[327784433,1716477042231,-500.0,0.00023988,2]
[327784434,1716477042240,-500.0,0.00023988,2]
[327784435,1716477042250,-500.0,0.00023988,2]
[327784436,1716477042259,-790.23,0.00023988,2]
[327784437,1716477042268,-654.48,0.00023988,2]
[327784438,1716477042278,-318.98007705,0.00023988,2]
[327784439,1716477042287,-500.0,0.00023988,2]
[327784440,1716477042296,-4973.08,0.00023988,2]
[327784441,1716477042306,-500.0,0.00023988,2]